[Event "Faroes Open 2018"]
[Site "Sandavagur"]
[Date "2018.07.11"]
[Round "6"]
[White "Djurhuus, Arant"]
[Black "Joensen, Hans Petur"]
[Result "1-0"]
[ECO "D00"]
[WhiteElo "1703"]
[BlackElo "1627"]
[Annotator "NA"]
[PlyCount "63"]
[EventDate "2018.07.07"]
[EventType "swiss"]
[EventCountry "FAI"]
[SourceTitle "playchess.com"]
[Source "ChessBase"]
[SourceQuality "1"]
[TimeControl "40/5400+30:900+30"]

1. d4 {[%emt 0:00:00]} d5 {[%emt 0:00:05]} 2. Bf4 {[%emt 0:00:00]} Bf5 {[%emt 0:02:11]} 3. c4 {[%emt 0:00:02]} c6 {[%emt 0:00:48]} 4. Nc3 {[%emt 0:02:45]} e6 {[%emt 0:02:36]} 5. Qb3 {[%emt 0:01:48]} Qb6 {[%emt 0:03:11]} 6. c5 {[%emt 0:00:39]} Qxb3 {[%emt 0:00:51]} 7. axb3 {[%emt 0:00:11]} Nd7 {[%emt 0:01:24]} 8. e3 {[%emt 0:02:16]} Ngf6 {[%emt 0:00:40]} 9. b4 {[%emt 0:02:20]} Nh5 {[%emt 0:05:33]} 10. b5 {[%emt 0:03:35]} Nxf4 {[%emt 0:00:17]} 11. exf4 {[%emt 0:00:36]} Be7 {[%emt 0:04:27]} 12. Nf3 {[%emt 0:04:04]} O-O {[%emt 0:06:10]} 13. b4 {[%emt 0:03:50]} f6 {[%emt 0:12:27]} 14. bxc6 {[%emt 0:12:27]} bxc6 {[%emt 0:00:29]} 15. Nh4 {[%emt 0:19:17]} Bg6 {[%emt 0:09:21]} 16. Nxg6 {[%emt 0:00:22]} hxg6 {[%emt 0:00:08]} 17. Bd3 {[%emt 0:00:15]} Kf7 {[%emt 0:01:41]} 18. O-O {[%emt 0:01:29]} e5 {[%emt 0:00:43]} 19. fxe5 {[%emt 0:11:12]} fxe5 {[%emt 0:00:28]} 20. dxe5 {[%emt 0:00:47]} Nxe5 {[%emt 0:00:48]} 21. Bc2 {[%emt 0:01:13]} Bf6 {[%emt 0:03:14]} 22. Ra6 {[%emt 0:01:51]} Nc4 {[%emt 0:06:58]} 23. Na2 {[%emt 0:04:57]} Rfe8 {[%emt 0:14:42]} 24. Ba4 {[%emt 0:01:20]} Re2 {[%emt 0:04:58]} 25. Bxc6 {[%emt 0:00:48]} Rd8 {[%emt 0:00:15]} 26. Rxa7+ {[%emt 0:00:42]} Ke6 {[%emt 0:00:43]} 27. Bb5 {[%emt 0:03:42]} Bd4 {[%emt 0:01:41]} 28. Nc1 {[%emt 0:03:12]} Rb2 {[%emt 0:03:37]} 29. Nd3 {[%emt 0:00:53]} Rd2 {[%emt 0:00:22]} 30. Nf4+ {[%emt 0:00:54]} Kf5 {[%emt 0:04:43]} 31. Rf7+ {[%emt 0:01:23]} Kg4 {[%emt 0:00:21]} 32. h3+ {[%emt 0:00:34]} 1-0

[Event "Faroes Open 2018"]
[Site "Sandavagur"]
[Date "2018.07.11"]
[Round "6"]
[White "Gregersen, Einar"]
[Black "Jacobsen, Markus"]
[Result "1-0"]
[ECO "C00"]
[WhiteElo "1665"]
[BlackElo "1106"]
[Annotator "NA"]
[PlyCount "55"]
[EventDate "2018.07.07"]
[EventType "swiss"]
[EventCountry "FAI"]
[SourceTitle "playchess.com"]
[Source "ChessBase"]
[SourceQuality "1"]
[TimeControl "40/5400+30:900+30"]

1. e4 {[%emt 0:00:00]} e6 {[%emt 0:00:00]} 2. b3 {[%emt 0:00:00]} Nc6 {[%emt 0:00:25]} 3. Bb2 {[%emt 0:00:28]} d5 {[%emt 0:00:51]} 4. g4 {[%emt 0:03:45]} Nf6 {[%emt 0:01:57]} 5. Bg2 {[%emt 0:04:06]} Bc5 {[%emt 0:02:34]} 6. Qe2 {[%emt 0:02:53]} Nd4 {[%emt 0:01:41]} 7. Bxd4 {[%emt 0:02:31]} Bxd4 {[%emt 0:01:11]} 8. c3 {[%emt 0:00:11]} Bb6 {[%emt 0:01:54]} 9. e5 {[%emt 0:00:52]} Nd7 {[%emt 0:01:32]} 10. d4 {[%emt 0:04:22]} Qg5 {[%emt 0:05:01]} 11. Nd2 {[%emt 0:01:36]} c5 {[%emt 0:01:05]} 12. h4 {[%emt 0:01:38]} Qe7 {[%emt 0:03:14]} 13. Ngf3 {[%emt 0:01:21]} cxd4 {[%emt 0:01:51]} 14. cxd4 {[%emt 0:01:10]} Ba5 {[%emt 0:01:13]} 15. O-O {[%emt 0:01:05]} Bxd2 {[%emt 0:01:54]} 16. Qxd2 {[%emt 0:00:32]} Nf8 {[%emt 0:02:19]} 17. h5 {[%emt 0:07:14]} h6 {[%emt 0:01:47]} 18. Rfc1 {[%emt 0:00:17]} Nh7 {[%emt 0:01:35]} 19. Rc2 {[%emt 0:03:24]} O-O {[%emt 0:01:23]} 20. Rac1 {[%emt 0:00:43]} Ng5 {[%emt 0:01:12]} 21. Ne1 {[%emt 0:05:08]} Ne4 {[%emt 0:01:20]} 22. Bxe4 {[%emt 0:00:40]} dxe4 {[%emt 0:01:58]} 23. Qe3 {[%emt 0:00:48]} Qh4 {[%emt 0:02:29]} 24. Qxe4 {[%emt 0:00:28]} Rb8 {[%emt 0:00:54]} 25. Nf3 {[%emt 0:01:43]} Qh3 {[%emt 0:01:03]} 26. Rc3 {[%emt 0:00:59]} Bd7 {[%emt 0:01:27]} 27. Ng5 {[%emt 0:01:21]} Qh1+ {[%emt 0:01:18]} 28. Qxh1 {[%emt 0:00:59]} 1-0

[Event "Faroes Open 2018"]
[Site "Sandavagur"]
[Date "2018.07.11"]
[Round "6"]
[White "Petersen, Gutti"]
[Black "Fjallheim, Benjamin Reinert"]
[Result "1-0"]
[ECO "C68"]
[WhiteElo "1596"]
[BlackElo "1375"]
[Annotator "NA"]
[PlyCount "149"]
[EventDate "2018.07.07"]
[EventType "swiss"]
[EventCountry "FAI"]
[SourceTitle "playchess.com"]
[Source "ChessBase"]
[SourceQuality "1"]
[TimeControl "40/5400+30:900+30"]

1. e4 {[%emt 0:00:35]} e5 {[%emt 0:00:00]} 2. Nf3 {[%emt 0:00:00]} Nc6 {[%emt 0:00:00]} 3. Bb5 {[%emt 0:00:04]} a6 {[%emt 0:00:08]} 4. Bxc6 {[%emt 0:00:11]} dxc6 {[%emt 0:00:20]} 5. d3 {[%emt 0:00:09]} Bd6 {[%emt 0:01:09]} 6. Be3 {[%emt 0:00:06]} Nf6 {[%emt 0:00:21]} 7. Nbd2 {[%emt 0:00:06]} Be6 {[%emt 0:00:33]} 8. Qe2 {[%emt 0:00:30]} Ng4 {[%emt 0:02:08]} 9. h3 {[%emt 0:01:05]} Nxe3 {[%emt 0:00:44]} 10. Qxe3 {[%emt 0:00:19]} c5 {[%emt 0:02:51]} 11. Nc4 {[%emt 0:04:05]} f6 {[%emt 0:00:13]} 12. Ncd2 {[%emt 0:03:44]} h6 {[%emt 0:02:31]} 13. Qe2 {[%emt 0:00:21]} Qd7 {[%emt 0:01:44]} 14. b3 {[%emt 0:00:25]} Qf7 {[%emt 0:03:05]} 15. Nh2 {[%emt 0:04:42]} Qg6 {[%emt 0:02:29]} 16. f3 {[%emt 0:01:01]} h5 {[%emt 0:04:48]} 17. O-O-O {[%emt 0:00:37]} Qg5 {[%emt 0:02:23]} 18. Kb1 {[%emt 0:00:31]} g6 {[%emt 0:00:35]} 19. Nhf1 {[%emt 0:03:41]} Rb8 {[%emt 0:02:20]} 20. h4 {[%emt 0:01:27]} Qh6 {[%emt 0:00:23]} 21. Ne3 {[%emt 0:01:26]} b5 {[%emt 0:00:45]} 22. Ka1 {[%emt 0:01:19]} Qg7 {[%emt 0:02:36]} 23. c4 {[%emt 0:01:41]} b4 {[%emt 0:00:31]} 24. Kb1 {[%emt 0:01:42]} a5 {[%emt 0:01:06]} 25. g4 {[%emt 0:00:40]} a4 {[%emt 0:01:40]} 26. Rdg1 {[%emt 0:01:07]} axb3 {[%emt 0:04:07]} 27. axb3 {[%emt 0:02:36]} Ra8 {[%emt 0:00:58]} 28. Kb2 {[%emt 0:00:15]} c6 {[%emt 0:02:59]} 29. Qg2 {[%emt 0:02:46]} Kf7 {[%emt 0:05:58]} 30. Qh3 {[%emt 0:13:02]} Ra6 {[%emt 0:02:45]} 31. Ra1 {[%emt 0:00:20]} Rha8 {[%emt 0:00:36]} 32. Rxa6 {[%emt 0:00:35]} Rxa6 {[%emt 0:00:10]} 33. Rg1 {[%emt 0:00:13]} Qh6 {[%emt 0:01:36]} 34. Re1 {[%emt 0:00:35]} Qh8 {[%emt 0:00:37]} 35. Qh1 {[%emt 0:03:04]} Qa8 {[%emt 0:03:05]} 36. Ra1 {[%emt 0:00:30]} Rxa1 {[%emt 0:00:56]} 37. Qxa1 {[%emt 0:00:40]} Qxa1+ {[%emt 0:00:03]} 38. Kxa1 {[%emt 0:00:26]} hxg4 {[%emt 0:00:27]} 39. fxg4 {[%emt 0:00:38]} Bf8 {[%emt 0:02:54]} 40. Nf3 {[%emt 0:03:00]} Bd6 {[%emt 0:04:59]} 41. Kb2 {[%emt 0:15:27]} Kg7 {[%emt 0:15:42]} 42. Kc2 {[%emt 0:00:28]} Be7 {[%emt 0:01:48]} 43. Kd2 {[%emt 0:00:16]} Kh6 {[%emt 0:03:00]} 44. Ke2 {[%emt 0:00:39]} Bc8 {[%emt 0:00:52]} 45. Kf2 {[%emt 0:00:22]} Be6 {[%emt 0:00:15]} 46. Kg3 {[%emt 0:00:04]} Bc8 {[%emt 0:00:33]} 47. Nd1 {[%emt 0:05:45]} Bd6 {[%emt 0:00:49]} 48. Nf2 {[%emt 0:00:39]} Be7 {[%emt 0:02:13]} 49. Nh3 {[%emt 0:00:25]} Be6 {[%emt 0:00:40]} 50. g5+ {[%emt 0:00:14]} Kg7 {[%emt 0:00:35]} 51. gxf6+ Kxf6 52. Nhg5 {[%emt 0:05:47]} Bd6 {[%emt 0:00:42]} 53. Nxe6 {[%emt 0:06:17]} Kxe6 {[%emt 0:00:00]} 54. Kg4 {[%emt 0:00:43]} Be7 {[%emt 0:00:01]} 55. h5 {[%emt 0:07:51]} gxh5+ {[%emt 0:00:15]} 56. Kxh5 {[%emt 0:00:05]} Kf6 {[%emt 0:00:43]} 57. Nh4 {[%emt 0:01:54]} Bd6 {[%emt 0:02:02]} 58. Nf5 {[%emt 0:01:36]} Bf8 {[%emt 0:00:51]} 59. Ne3 {[%emt 0:01:38]} Bd6 {[%emt 0:00:55]} 60. Ng4+ {[%emt 0:00:18]} Kf7 {[%emt 0:00:51]} 61. Kg5 {[%emt 0:00:20]} Ke6 {[%emt 0:00:13]} 62. Kg6 {[%emt 0:00:52]} Be7 {[%emt 0:00:34]} 63. Nh6 {[%emt 0:01:24]} Bh4 {[%emt 0:01:05]} 64. Nf7 {[%emt 0:01:11]} Be1 {[%emt 0:02:05]} 65. Ng5+ {[%emt 0:00:49]} Ke7 {[%emt 0:01:07]} 66. Kf5 {[%emt 0:00:48]} Bc3 {[%emt 0:00:57]} 67. Ne6 {[%emt 0:03:14]} Kd6 {[%emt 0:00:01]} 68. Kf6 {[%emt 0:01:17]} Bb2 {[%emt 0:00:29]} 69. Nd8 {[%emt 0:01:25]} Bc3 {[%emt 0:00:54]} 70. Nb7+ {[%emt 0:00:35]} Kc7 {[%emt 0:01:32]} 71. Nxc5 {[%emt 0:00:31]} Kd6 {[%emt 0:00:52]} 72. Ne6 c5 73. Nd8 {[%emt 0:04:42]} Bd4 {[%emt 0:00:14]} 74. Nf7+ Kd7 {[%emt 0:00:30]} 75. Kf5 {[%emt 0:00:49]} 1-0

[Event "Faroes Open 2018"]
[Site "Sandavagur"]
[Date "2018.07.11"]
[Round "6"]
[White "Tummasarson, Flóvin Matras"]
[Black "Petersen, Elias"]
[Result "1-0"]
[ECO "C53"]
[WhiteElo "1237"]
[BlackElo "1035"]
[Annotator "NA"]
[PlyCount "83"]
[EventDate "2018.07.07"]
[EventType "swiss"]
[EventCountry "FAI"]
[SourceTitle "playchess.com"]
[Source "ChessBase"]
[SourceQuality "1"]
[TimeControl "40/5400+30:900+30"]

1. e4 {[%emt 0:00:00]} e5 {[%emt 0:00:00]} 2. Nf3 {[%emt 0:05:12]} Nc6 {[%emt 0:00:20]} 3. Bc4 {[%emt 0:00:12]} Bc5 {[%emt 0:01:02]} 4. c3 {[%emt 0:00:34]} d6 {[%emt 0:00:53]} 5. d4 {[%emt 0:02:42]} Bb6 {[%emt 0:00:34]} 6. Be3 {[%emt 0:03:14]} Bg4 {[%emt 0:03:29]} 7. d5 {[%emt 0:10:31]} Nce7 {[%emt 0:02:27]} 8. Bxb6 {[%emt 0:02:56]} axb6 {[%emt 0:00:27]} 9. Nbd2 {[%emt 0:00:10]} Nf6 {[%emt 0:00:39]} 10. Qc2 {[%emt 0:00:53]} O-O 11. h3 {[%emt 0:02:52]} Bh5 {[%emt 0:00:46]} 12. O-O h6 {[%emt 0:00:29]} 13. Rfe1 {[%emt 0:03:16]} c6 14. dxc6 {[%emt 0:01:43]} bxc6 {[%emt 0:00:38]} 15. Bb3 {[%emt 0:05:19]} Bg6 {[%emt 0:00:37]} 16. Qc1 {[%emt 0:01:18]} Qc7 {[%emt 0:04:19]} 17. c4 {[%emt 0:03:00]} Nd7 18. Qc3 {[%emt 0:02:06]} Kh8 {[%emt 0:03:37]} 19. Bc2 {[%emt 0:00:57]} f5 {[%emt 0:01:06]} 20. Nh4 Bh7 21. exf5 {[%emt 0:05:28]} Bxf5 {[%emt 0:02:48]} 22. Bxf5 Nxf5 {[%emt 0:00:39]} 23. Ng6+ {[%emt 0:01:28]} Kg8 {[%emt 0:00:23]} 24. Nxf8 {[%emt 0:00:26]} Rxf8 {[%emt 0:00:19]} 25. Ne4 {[%emt 0:01:37]} Nd4 {[%emt 0:00:32]} 26. Rac1 {[%emt 0:05:09]} Nf6 {[%emt 0:00:48]} 27. f4 {[%emt 0:00:30]} Nh5 {[%emt 0:02:18]} 28. fxe5 dxe5 {[%emt 0:00:16]} 29. Ng3 {[%emt 0:04:36]} Nf4 30. Qe3 {[%emt 0:02:29]} Re8 {[%emt 0:02:45]} 31. Rf1 {[%emt 0:05:27]} Re7 {[%emt 0:04:15]} 32. Rcd1 {[%emt 0:05:54]} c5 {[%emt 0:01:44]} 33. Qe4 {[%emt 0:06:15]} Kh8 {[%emt 0:01:12]} 34. Rde1 {[%emt 0:07:44]} Kg8 {[%emt 0:01:27]} 35. Rxf4 {[%emt 0:00:44]} exf4 {[%emt 0:00:12]} 36. Qxe7 {[%emt 0:00:07]} Qxe7 {[%emt 0:00:18]} 37. Rxe7 {[%emt 0:00:57]} fxg3 {[%emt 0:00:41]} 38. Rb7 {[%emt 0:00:24]} Nc2 {[%emt 0:00:13]} 39. Rxb6 {[%emt 0:00:28]} Nb4 {[%emt 0:00:11]} 40. a4 Kf7 41. Rxb4 {[%emt 0:15:55]} cxb4 {[%emt 0:16:02]} 42. a5 1-0

[Event "Faroes Open 2018"]
[Site "Sandavagur"]
[Date "2018.07.12"]
[Round "7"]
[White "Nielsen, Hogni Egilstoft"]
[Black "Nielsen, Rogvi Egilstoft"]
[Result "1/2-1/2"]
[ECO "C42"]
[WhiteElo "2397"]
[BlackElo "2337"]
[Annotator "NA"]
[PlyCount "62"]
[EventDate "2018.07.07"]
[EventType "swiss"]
[EventCountry "FAI"]
[SourceTitle "playchess.com"]
[Source "ChessBase"]
[SourceQuality "1"]
[TimeControl "40/5400+30:900+30"]

1. e4 {[%emt 0:00:00]} e5 {[%emt 0:00:58]} 2. Nf3 {[%emt 0:00:00]} Nf6 {[%emt 0:00:17]} 3. Nxe5 {[%emt 0:00:25]} d6 {[%emt 0:00:09]} 4. Nf3 {[%emt 0:00:07]} Nxe4 {[%emt 0:00:15]} 5. Nc3 {[%emt 0:00:19]} Nxc3 {[%emt 0:05:55]} 6. dxc3 {[%emt 0:00:08]} Be7 {[%emt 0:03:11]} 7. Bd3 {[%emt 0:00:40]} Nd7 {[%emt 0:00:25]} 8. Be3 {[%emt 0:05:33] LiveBook: 11 Partien} Nc5 {[%emt 0:02:36]} 9. Be2 {[%emt 0:05:23]} O-O {[%emt 0:03:34]} 10. Qd5 {[%emt 0:07:09]} Bg4 {[%emt 0:08:14]} 11. O-O {[%emt 0:20:46]} c6 {[%emt 0:03:46]} 12. Qd1 $11 {[%emt 0:06:23]} Ne6 {[%emt 0:12:24]} 13. Nd4 {[%emt 0:07:35]} Bxe2 {[%emt 0:00:50]} 14. Qxe2 {[%emt 0:00:20]} Nxd4 {[%emt 0:00:42]} 15. Bxd4 {[%emt 0:00:21]} Bf6 {[%emt 0:03:12]} 16. Bxf6 {[%emt 0:03:24]} Qxf6 {[%emt 0:00:08]} 17. Rfe1 {[%emt 0:00:07]} Rab8 {[%emt 0:02:38]} 18. Rad1 {[%emt 0:03:09]} d5 {[%emt 0:02:34]} 19. Rd3 {[%emt 0:00:41]} h6 {[%emt 0:05:27]} 20. Rf3 {[%emt 0:05:34]} Qd8 {[%emt 0:06:45]} 21. Qe7 {[%emt 0:08:30]} Qxe7 {[%emt 0:03:27]} 22. Rxe7 {[%emt 0:01:15]} f6 {[%emt 0:00:09]} 23. Rfe3 {[%emt 0:01:49]} Rf7 {[%emt 0:00:16]} 24. Kf1 {[%emt 0:00:35]} Kf8 {[%emt 0:00:32]} 25. R7e6 {[%emt 0:00:06]} Rd7 {[%emt 0:02:31]} 26. Ke2 {[%emt 0:05:31]} Rbd8 {[%emt 0:01:00]} 27. Kf3 {[%emt 0:04:34]} Rd6 {[%emt 0:01:09]} 28. Re7 {[%emt 0:01:52]} R6d7 {[%emt 0:00:12]} 29. R7e6 {[%emt 0:00:28]} Rd6 {[%emt 0:00:09]} 30. Re7 {[%emt 0:00:44]} R6d7 {[%emt 0:00:07]} 31. R7e6 {[%emt 0:00:13]} Rd6 1/2-1/2

[Event "Faroes Open 2018"]
[Site "Sandavagur"]
[Date "2018.07.12"]
[Round "7"]
[White "Kristiansen, Jens"]
[Black "Haubro, Martin"]
[Result "0-1"]
[ECO "A57"]
[WhiteElo "2380"]
[BlackElo "2373"]
[Annotator "NA"]
[PlyCount "74"]
[EventDate "2018.07.07"]
[EventType "swiss"]
[EventCountry "FAI"]
[SourceTitle "playchess.com"]
[Source "ChessBase"]
[SourceQuality "1"]
[TimeControl "40/5400+30:900+30"]

1. d4 {[%emt 0:00:00]} Nf6 {[%emt 0:02:21]} 2. c4 {[%emt 0:00:00]} c5 {[%emt 0:00:04]} 3. d5 {[%emt 0:00:06]} b5 {[%emt 0:00:03]} 4. cxb5 {[%emt 0:00:25]} a6 {[%emt 0:00:05]} 5. e3 {[%emt 0:01:55]} g6 {[%emt 0:01:19]} 6. Nc3 {[%emt 0:00:21]} Bg7 {[%emt 0:00:09]} 7. Nf3 {[%emt 0:01:22]} O-O {[%emt 0:00:14]} 8. a4 {[%emt 0:04:40]} Bb7 {[%emt 0:00:42]} 9. e4 {[%emt 0:03:17] LiveBook: 32 Games} e6 {[%emt 0:03:26]} 10. dxe6 {[%emt 0:05:37]} fxe6 {[%emt 0:00:20]} 11. Bg5 {[%emt 0:09:12]} Qa5 {[%emt 0:06:22]} 12. Bd2 {[%emt 0:06:46]} Qc7 {[%emt 0:00:50]} 13. Bd3 {[%emt 0:02:37]} d5 {[%emt 0:01:25]} 14. Ng5 $14 {[%emt 0:18:03]} Re8 {[%emt 0:05:56]} 15. b3 {[%emt 0:03:50]} h6 {[%emt 0:04:01]} 16. Nh3 {[%emt 0:00:13]} d4 {[%emt 0:01:31]} 17. Ne2 {[%emt 0:01:02]} Bxe4 {[%emt 0:03:51]} 18. Bxe4 {[%emt 0:02:04]} Nxe4 {[%emt 0:00:05]} 19. Rc1 {[%emt 0:00:37]} axb5 {[%emt 0:01:50]} 20. axb5 {[%emt 0:00:19]} Qd7 {[%emt 0:19:45]} 21. Ng3 {[%emt 0:06:04]} Nxd2 {[%emt 0:00:54]} 22. Qxd2 {[%emt 0:00:08]} Qxb5 {[%emt 0:00:13]} 23. Ne4 {[%emt 0:00:34]} Qxb3 {[%emt 0:17:01]} 24. Nxc5 {[%emt 0:00:22]} Qb5 {[%emt 0:00:06]} 25. Nf4 {[%emt 0:05:11]} Na6 {[%emt 0:02:46]} 26. Nxa6 {[%emt 0:10:51]} Rxa6 {[%emt 0:00:15]} 27. Qd3 {[%emt 0:06:23]} Qa5+ {[%emt 0:04:33]} 28. Kf1 {[%emt 0:01:10]} e5 {[%emt 0:03:48]} 29. Nxg6 {[%emt 0:01:57]} e4 {[%emt 0:00:05]} 30. Qc4+ {[%emt 0:00:13]} Kh7 {[%emt 0:00:04]} 31. Nf4 {[%emt 0:00:49]} Qd2 {[%emt 0:00:16]} 32. Re1 {[%emt 0:02:50]} Ra2 {[%emt 0:10:20]} 33. Qe2 {[%emt 0:00:40]} e3 {[%emt 0:01:48]} 34. fxe3 {[%emt 0:01:36]} dxe3 {[%emt 0:02:51]} 35. g3 {[%emt 0:02:34]} Re4 {[%emt 0:00:57]} 36. h4 {[%emt 0:01:55]} Bc3 {[%emt 0:00:46]} 37. Rd1 {[%emt 0:01:31]} Rxf4+ {[%emt 0:00:08]} 0-1

[Event "Faroes Open 2018"]
[Site "Sandavagur"]
[Date "2018.07.12"]
[Round "7"]
[White "Simonsen, Hans Kristian"]
[Black "Jotic, Vladimir"]
[Result "1/2-1/2"]
[ECO "B30"]
[WhiteElo "2150"]
[BlackElo "2387"]
[Annotator "NA"]
[PlyCount "114"]
[EventDate "2018.07.07"]
[EventType "swiss"]
[EventCountry "FAI"]
[SourceTitle "playchess.com"]
[Source "ChessBase"]
[SourceQuality "1"]
[TimeControl "40/5400+30:900+30"]

1. e4 {[%emt 0:00:00]} c5 {[%emt 0:00:00]} 2. Nf3 {[%emt 0:00:00]} Nc6 {[%emt 0:00:00]} 3. Bb5 {[%emt 0:00:00]} e6 {[%emt 0:00:02]} 4. Bxc6 {[%emt 0:00:35]} bxc6 {[%emt 0:00:02]} 5. O-O {[%emt 0:00:13]} Ne7 {[%emt 0:06:28]} 6. Re1 {[%emt 0:07:59] LiveBook: 34 Games} Ng6 {[%emt 0:00:28]} 7. d4 {[%emt 0:06:42]} d5 {[%emt 0:09:03]} 8. exd5 {[%emt 0:02:34]} cxd5 {[%emt 0:00:13]} 9. Nc3 {[%emt 0:00:07]} Bb7 {[%emt 0:13:19]} 10. Bg5 {[%emt 0:07:24]} Be7 {[%emt 0:04:03]} 11. Bxe7 {[%emt 0:04:05]} Qxe7 {[%emt 0:00:14]} 12. Qd2 {[%emt 0:08:39]} O-O {[%emt 0:01:58]} 13. Rad1 {[%emt 0:12:25]} Rfc8 {[%emt 0:03:56]} 14. Qe3 $15 {[%emt 0:01:06]} Rab8 {[%emt 0:09:01]} 15. h4 {[%emt 0:07:51]} Nxh4 {[%emt 0:09:39]} 16. Nxh4 {[%emt 0:00:08]} Qxh4 {[%emt 0:00:01]} 17. dxc5 {[%emt 0:00:16]} Qb4 {[%emt 0:02:00]} 18. Qe5 {[%emt 0:02:25]} Qxc5 {[%emt 0:05:55]} 19. Re3 {[%emt 0:03:27]} Ba8 {[%emt 0:05:49]} 20. Rd4 {[%emt 0:03:54]} Rb4 {[%emt 0:04:17]} 21. Ne2 {[%emt 0:00:59]} Rxb2 {[%emt 0:07:13]} 22. Rg3 {[%emt 0:03:43]} Rb1+ {[%emt 0:01:07]} 23. Kh2 {[%emt 0:00:11]} Qf8 {[%emt 0:01:49]} 24. Nf4 {[%emt 0:02:54]} g6 {[%emt 0:01:44]} 25. Nh5 {[%emt 0:01:18]} f6 26. Nxf6+ {[%emt 0:01:07]} Kf7 {[%emt 0:01:00]} 27. Nxh7 {[%emt 0:02:28]} Qh8 {[%emt 0:00:52]} 28. Qf4+ {[%emt 0:00:47]} Ke7 {[%emt 0:01:11]} 29. Rh3 {[%emt 0:01:23]} e5 {[%emt 0:03:57]} 30. Qg5+ {[%emt 0:00:13]} Kd6 {[%emt 0:00:07]} 31. Qxg6+ {[%emt 0:00:29]} Kc7 {[%emt 0:00:14]} 32. Rc3+ {[%emt 0:02:55]} Kb7 {[%emt 0:00:18]} 33. Qf7+ {[%emt 0:00:11]} Kb8 {[%emt 0:00:34]} 34. Rdd3 {[%emt 0:00:18]} Rb7 {[%emt 0:01:22]} 35. Rxc8+ {[%emt 0:01:23]} Qxc8 {[%emt 0:02:33]} 36. Qh5 {[%emt 0:02:47]} Qxc2 {[%emt 0:02:15]} 37. Qe8+ {[%emt 0:00:57]} Qc8 {[%emt 0:00:38]} 38. Qxe5+ {[%emt 0:00:23]} Qc7 {[%emt 0:00:13]} 39. Qxc7+ {[%emt 0:00:09]} Rxc7 {[%emt 0:00:11]} 40. Ng5 {[%emt 0:00:46]} Rc2 {[%emt 0:00:19]} 41. f4 {[%emt 0:15:15]} Rxa2 {[%emt 0:16:54]} 42. Kh3 {[%emt 0:02:04]} Kc7 {[%emt 0:00:00]} 43. g4 {[%emt 0:00:00]} Kd6 {[%emt 0:00:00]} 44. Nf3 {[%emt 0:00:00]} Bc6 {[%emt 0:00:00]} 45. f5 {[%emt 0:00:00]} Bd7 {[%emt 0:00:00]} 46. Kh4 {[%emt 0:00:00]} a5 {[%emt 0:00:00]} 47. Rd4 {[%emt 0:00:00]} Ra4 {[%emt 0:01:01]} 48. Rxa4 {[%emt 0:00:00]} Bxa4 {[%emt 0:00:00]} 49. g5 {[%emt 0:00:00]} Bd7 {[%emt 0:01:26]} 50. Nd4 {[%emt 0:00:00]} Ke5 {[%emt 0:00:13]} 51. f6 {[%emt 0:00:00]} Be8 {[%emt 0:00:04]} 52. Nc6+ {[%emt 0:00:00]} Kf4 {[%emt 0:02:12]} 53. Nxa5 {[%emt 0:00:00]} d4 {[%emt 0:00:15]} 54. Nc4 {[%emt 0:00:00]} d3 {[%emt 0:00:06]} 55. Nb2 {[%emt 0:00:00]} d2 {[%emt 0:00:51]} 56. Nd1 {[%emt 0:00:00]} Kf3 {[%emt 0:01:44]} 57. Nc3 {[%emt 0:00:00]} Bg6 1/2-1/2

[Event "Faroes Open 2018"]
[Site "Sandavagur"]
[Date "2018.07.12"]
[Round "7"]
[White "Nielsen, Torkil"]
[Black "Nilssen, John Arni"]
[Result "1/2-1/2"]
[ECO "B22"]
[WhiteElo "2115"]
[BlackElo "2301"]
[Annotator "NA"]
[PlyCount "88"]
[EventDate "2018.07.07"]
[EventType "swiss"]
[EventCountry "FAI"]
[SourceTitle "playchess.com"]
[Source "ChessBase"]
[SourceQuality "1"]
[TimeControl "40/5400+30:900+30"]

1. e4 {[%emt 0:00:00]} c5 {[%emt 0:00:03]} 2. c3 {[%emt 0:00:00]} d5 {[%emt 0:00:07]} 3. exd5 {[%emt 0:00:08]} Qxd5 {[%emt 0:00:06]} 4. d4 {[%emt 0:00:10]} g6 {[%emt 0:00:12]} 5. Be3 {[%emt 0:04:05]} Bg7 {[%emt 0:01:56]} 6. Nf3 {[%emt 0:00:53]} cxd4 {[%emt 0:02:16]} 7. cxd4 {[%emt 0:00:27]} Nc6 {[%emt 0:02:58]} 8. Nbd2 {[%emt 0:12:23]} (8. Nc3 $14 Qa5 9. d5) 8... Qa5 {[%emt 0:13:41]} 9. Qb3 {[%emt 0:11:49]} Nf6 {[%emt 0:04:56]} 10. Bb5 {[%emt 0:04:22]} O-O {[%emt 0:01:20]} 11. Bxc6 {[%emt 0:02:19]} bxc6 {[%emt 0:00:07]} 12. O-O {[%emt 0:00:13]} Be6 {[%emt 0:04:57]} 13. Qc2 {[%emt 0:02:29]} Rfc8 $11 {[%emt 0:03:54]} 14. Ne5 {[%emt 0:08:24]} Nd5 {[%emt 0:05:02]} 15. Ndc4 {[%emt 0:02:02]} Qa6 {[%emt 0:10:02]} 16. b3 {[%emt 0:10:30]} c5 {[%emt 0:01:44]} 17. Qe4 {[%emt 0:09:41]} Rd8 {[%emt 0:11:22]} 18. dxc5 {[%emt 0:08:47]} f6 {[%emt 0:14:49]} 19. Nf3 {[%emt 0:10:09]} f5 {[%emt 0:08:53]} 20. Qh4 {[%emt 0:00:17]} Nxe3 {[%emt 0:02:32]} 21. Nxe3 {[%emt 0:03:35]} Bxa1 {[%emt 0:00:25]} 22. Rxa1 {[%emt 0:00:39]} Bd5 {[%emt 0:03:10]} 23. Qxe7 {[%emt 0:02:32]} Bxf3 {[%emt 0:01:51]} 24. gxf3 {[%emt 0:00:30]} Qc6 {[%emt 0:01:43]} 25. Kg2 {[%emt 0:00:18]} Re8 {[%emt 0:02:48]} 26. Qd6 {[%emt 0:00:17]} Re6 {[%emt 0:00:22]} 27. Qxc6 {[%emt 0:00:45]} Rxc6 {[%emt 0:00:05]} 28. Rc1 {[%emt 0:00:12]} Kf8 {[%emt 0:01:04]} 29. b4 {[%emt 0:02:30]} Rb8 {[%emt 0:01:18]} 30. a3 {[%emt 0:01:09]} Rd8 {[%emt 0:00:38]} 31. b5 {[%emt 0:01:00]} Rc7 {[%emt 0:00:08]} 32. c6 {[%emt 0:00:30]} Rd4 {[%emt 0:00:28]} 33. Rc4 {[%emt 0:01:20]} Rxc4 {[%emt 0:00:43]} 34. Nxc4 {[%emt 0:00:00]} Ke7 {[%emt 0:00:44]} 35. a4 {[%emt 0:00:24]} Kd8 {[%emt 0:00:29]} 36. Kg3 {[%emt 0:01:39]} Re7 {[%emt 0:00:03]} 37. Kf4 Kc7 {[%emt 0:00:27]} 38. Ne3 {[%emt 0:01:27]} Kd6 {[%emt 0:00:16]} 39. h4 {[%emt 0:00:39]} Kc5 {[%emt 0:01:05]} 40. Kg5 {[%emt 0:00:52]} a6 {[%emt 0:00:41]} 41. h5 {[%emt 0:05:13]} axb5 {[%emt 0:03:09]} 42. axb5 {[%emt 0:00:14]} f4 43. Kxf4 gxh5 {[%emt 0:04:08]} 44. Nf5 {[%emt 0:04:32]} Rc7 {[%emt 0:00:38]} 1/2-1/2